{"text_format":"1","workbook":"xlsx","n_sheets":5,"sheets":["Instructions","Index","Price List","Websites","Changes"],"not_rendered":{"charts":0,"images":2,"macros":1,"external_links":0,"defined_names":18,"comments":0,"pivot_tables":0},"unopened":[],"bounds":{"document_bytes":16777216,"sheet_cells":100000,"rows_first":2000,"rows_last":500,"rows_between":2000,"halvings":0,"cell_chars":16384,"cell_head_chars":4096},"cells_cut":0,"cells_raw":0,"read":"whole","date_system":"1900"}

{"sheet":"Instructions","index":0,"n_rows":58,"n_cols":10,"rows_kept":58,"cut":false,"hidden":false,"merged":[[7,2,7,7],[36,3,36,4]]}
["Manufacturer","KurbX"]
["File as","K"]
["Product Code","N"]
["CCTD Effective Date","11/1/25 (Updated)"]
[]
[]
[]
["Enter your Company Name"]
[]
[null,"Click on \"Index\" to set the print area for the price list index"]
[null,"Then you can send it to print"]
[]
[]
[null,"Click on \"Suggested Price List\" to set the print area for Conestoga Tile's suggested price list."]
[null,"Then you can send it to print"]
[]
[]
[null,"Enter your discount codes if you want a personal net cost sheet."]
[]
[null,"Product"]
[null,"Code","Disc. %"]
[null,{"$f":"+B3","v":"N"},0,"  This is a \"NET\" price list.  0% is the discount for this spreadsheet"]
[]
[null,"Click on \"Your Cost\" to set the print area for your personal cost report."]
[null,"Then you can send it to print"]
[]
[]
["Discount: ","To help establish your price list, enter the gross profit percent for each type of product."]
[null,"If you want to use Conestoga Tile's list price, leave them blank."]
[]
["Round Nickel: ","If you always want your price to round to the nearest nickel, enter \"YES\"."]
[null,"If you enter \"NO\", it will NOT round to the nearest nickel."]
[]
["Ending Cents: ","If you always want your price to end with a certain cents, enter that cent value."]
[null,"If you leave it \"blank\" will NOT round to this cent value."]
[]
[null,"Group","GP Margin","GP Margin % for",null,"Round Nickel","add/subtract","Ending Cents"]
[null,1,null,"Stocked Pans",null,"No",0]
[null,2,null,"Non-Stock Pans",null,"No",0]
[null,3,null,"Installation Pkg",null,"No",0,null,null," "]
[null,4,null,"Drains",null,"No",0]
[null,5,null,"Setting Materials",null,"No",0]
[null,6,null,0,null,"No",0]
[null,7,null,0,null,"No",0]
[]
["If you want to manually adjust your price list, hit \"F5\" and go to \"Customer_Cost\" to manually adjust pricing."]
["You can enter a value in the column labeled \"Adj.\" to change your price manually."]
[]
[null,"Click on \"Your Price Calculation\" to set the print area for your personal cost calculation report."]
[null,"Then you can send it to print"]
[]
[]
[null,"Click on \"Your Price List\" to set the print area for your personal price list."]
[null,"Then you can send it to print"]
[null,null,null,null,null,null,null,"Yes"]
[]
["If you have any questions on how to best use this spreadsheet, please feel free to contact"]
["Jim Vogel at (800) 422-6860, ext. 4201 or via e-mail at jimvogel@cctd.com"]

{"sheet":"Index","index":1,"n_rows":49,"n_cols":6,"rows_kept":49,"cut":false,"hidden":false,"merged":[[5,0,5,10],[46,0,46,10],[48,0,48,10],[2,5,2,10],[10,2,10,8]]}
[]
[]
[null,null,null,null,null,{"$f":"\"File '\"&Instructions!B2&\"' - \"&Instructions!B1","v":"File 'K' - KurbX"}]
[]
[]
[{"$f":"\"Price List Index - \"&Instructions!B4","v":"Price List Index - 11/1/25 (Updated)"}]
[]
[]
[]
[]
["Page",null,"Series / Product Type"]
[]
[]
[]
[]
[]
[]
[]
[]
[]
[]
[]
[]
[]
[]
[]
[]
[]
[]
[]
[]
[]
[]
[]
[]
[]
[]
[]
[]
[]
[]
[]
[]
[]
[]
[]
["This price list is available electronically on an Excel spreadsheet at www.conestogatile.com/pricelists."]
[]
["The spreadsheet has many special features to assist you.  Apply your discount to generate your net costs for your purchasing department.  Apply your standard gross margin percentage or custom prices to generate your own custom price list for your showroom.  Print out individual price list for each series that can be attached to the back of your sample boards for easy reference."]

{"sheet":"Price List","index":2,"n_rows":181,"n_cols":42,"rows_kept":181,"cut":false,"hidden":false,"merged":[[12,14,12,20],[13,31,13,33],[10,15,10,16],[9,15,9,20],[9,23,9,24],[9,26,9,33],[12,23,12,24],[18,2,18,19],[170,3,170,4],[17,15,17,16],[164,2,164,20],[166,2,166,20]]}
[null,"Stocked Pans",null,null,"Size",null,"Item #",null,"Description",null,null,null,null,null,null,null,null,null,null,{"$f":"IF(Suggested=\"Yes\",AB1,AH1)","v":0.05},"EA",{"$f":"+Instructions!$B$3","v":"N"},null,{"$f":"+Instructions!$C$22","v":0},{"$f":"ROUND($AB1*(1-X1)+0.004999,2)","v":0.05},null,"new",0.05,{"$f":"+X1","v":0},0.05,{"$f":"(AH1-AD1)/AH1","v":0},null,1,{"$f":"SUM(AK1:AM1)+AF1","v":0.05},null,null,{"$f":"ROUND(AD1/(1-VLOOKUP(AG1,Group,2,FALSE)),2)","v":0.05},{"$f":"IF(VLOOKUP(AG1,Group,5,FALSE)=\"YES\",VLOOKUP(ROUND(ROUND(AK1,1)-AK1,2),Round,2,FALSE)+VLOOKUP(AG1,Group,6,FALSE),0)","v":0},{"$f":"IF(VLOOKUP(AG1,Group,7,FALSE)=\"\",0,ROUND(AK1-0.04999,1)-AK1+AN1)","v":0},{"$f":"IF(VLOOKUP(AG1,Group,7,FALSE)=\"\",\"\",VLOOKUP(AG1,Group,7,FALSE))","v":""},null,"X"]
[null,"Non-Stock Pans",null,null,"Size",null,"Item #",null,"Description",null,null,null,null,null,null,null,null,null,null,{"$f":"IF(Suggested=\"Yes\",AB2,AH2)","v":0.05},"EA",{"$f":"+Instructions!$B$3","v":"N"},null,{"$f":"+Instructions!$C$22","v":0},0.05,null,"new",0.05,0,0.05,0,null,2,0.05,null,null,0.05,0,0,"",null,"X"]
[null,"Installation Pkg",null,null,"Size",null,"Item #",null,"Description",null,null,null,null,null,null,null,null,null,null,{"$f":"IF(Suggested=\"Yes\",AB3,AH3)","v":0.05},"EA",{"$f":"+Instructions!$B$3","v":"N"},null,{"$f":"+Instructions!$C$22","v":0},{"$f":"ROUND($AB3*(1-X3)+0.004999,2)","v":0.05},null,"new",0.05,{"$f":"+X3","v":0},{"$f":"+Y3","v":0.05},{"$f":"(AH3-AD3)/AH3","v":0},null,3,{"$f":"SUM(AK3:AM3)+AF3","v":0.05},null,null,{"$f":"ROUND(AD3/(1-VLOOKUP(AG3,Group,2,FALSE)),2)","v":0.05},{"$f":"IF(VLOOKUP(AG3,Group,5,FALSE)=\"YES\",VLOOKUP(ROUND(ROUND(AK3,1)-AK3,2),Round,2,FALSE)+VLOOKUP(AG3,Group,6,FALSE),0)","v":0},{"$f":"IF(VLOOKUP(AG3,Group,7,FALSE)=\"\",0,ROUND(AK3-0.04999,1)-AK3+AN3)","v":0},{"$f":"IF(VLOOKUP(AG3,Group,7,FALSE)=\"\",\"\",VLOOKUP(AG3,Group,7,FALSE))","v":""},null,"X"]
[null,"Drains",null,null,"Size",null,"Item #",null,"Description",null,null,null,null,null,null,null,null,null,null,0.05,"EA",{"$f":"+Instructions!$B$3","v":"N"},null,{"$f":"+Instructions!$C$22","v":0},0.05,null,"new",0.05,0,0.05,0,null,4,0.05,null,null,0.05,0,0,"",null,"X"]
[null,"Setting Materials",null,null,"Size",null,"Item #",null,"Description",null,null,null,null,null,null,null,null,null,null,0.05,"EA",{"$f":"+Instructions!$B$3","v":"N"},null,{"$f":"+Instructions!$C$22","v":0},0.05,null,"new",0.05,0,0.05,0,null,5,0.05,null,null,0.05,0,0,"",null,"X"]
[null,0,null,null,"Size",null,"Item #",null,"Description",null,null,null,null,null,null,null,null,null,null,0,"EA",{"$f":"+Instructions!$B$3","v":"N"},null,{"$f":"+Instructions!$C$22","v":0},0,null,"new",0,0,0,{"$error":"#DIV/0!"},null,6,0,null,null,0,0,0,"",null,"X"]
[null,0,null,null,"Size",null,"Item #",null,"Description",null,null,null,null,null,null,null,null,null,null,0,"EA",{"$f":"+Instructions!$B$3","v":"N"},null,{"$f":"+Instructions!$C$22","v":0},0,null,"new",0,0,0,{"$error":"#DIV/0!"},null,7,0,null,null,0,0,0,"",null,"X"]
[null,"Format",null,null,null,null,null,null,null,null,null,null,null,null,null,null,null,"Stock","a",1000,"ABC",null,null,0.1,1000,null,"ABC",1000,0.1,1000,0.1,10,null,1000,null,null,null,null,null,null,null,"X"]
[null,null,null,null,null,null,null,null,null,null,null,null,null,null,null,null,null,null,null,null,null,null,null,null,null,null,null,null,null,null,null,null,null,null,null,null,null,null,null,null,null,"X"]
[null,null,null,null,null,null,null,null,null,null,null,null,null,null,null,"Price List",null,null,null,null,null,null,null,"Cust. Cost",null,null,"Customer Cost Calculation",null,null,null,null,null,null,null,null,null,null,null,null,null,null,"X"]
[null,null,null,"Sizes & Shapes",null,null,null,null,null,null,null,null,null,null,null,"Full Carton",null,"Stock","Note",{"$f":"IF(Suggested=\"Yes\",AB11,AH11)","v":"Net Price"},"U/M","Code",null,"Disc.","Net",null,"Chg","Net Price","Disc","Act. Cost","GP%","Adj.","Group","Price",null,null,"Calc Price",".05 Round","Cents","Round to",null,"X"]
[null,null,null,null,null,null,null,null,null,null,null,null,null,null,null,null,null,null,null,null,null,null,null,null,null,null,null,null,null,null,null,null,null,null,null,null,null,null,null,null,null,"X"]
[null,null,null,null,null,null,null,null,null,null,null,null,null,null,{"$f":"\"File '\"&Instructions!B2&\"' - \"&Instructions!B1","v":"File 'K' - KurbX"},null,null,null,null,null,null,null,null,"Cost",null,null,null,null,null,null,null,null,null,"Retail Price Calculations",null,null,null,null,null,null,null,"X"]
[null,null,null,null,null,null,null,null,null,null,null,null,null,null,null,null,null,null,null,null,{"$f":"+Instructions!B4","v":"11/1/25 (Updated)"},null,null,null,null,null,null,null,null,null,null,{"$f":"TODAY()","v":"2025-11-03"},null,null,null,null,null,null,null,null,null,"X"]
[null,null,null,null,null,null,null,null,null,null,null,null,null,null,null,null,null,null,null,null,null,null,null,null,null,null,null,null,null,null,null,null,null,null,null,null,null,null,null,null,null,"X"]
[null,null,{"$f":"\"Product Code '\"&Instructions!B3&\"'\"","v":"Product Code 'N'"},null,null,null,null,null,null,null,null,null,null,null,null,null,null,null,null,null,null,null,null,null,null,null,null,null,null,null,null,null,null,{"$f":"IF(Instructions!$C$8=\"\",\"\",Instructions!$C$8)","v":""},null,null,null,null,null,null,null,"X"]
[null,null,null,null,null,null,null,null,null,null,null,null,null,null,null,null,null,null,null,null,null,null,null,null,null,null,null,null,null,null,null,null,null,null,null,null,null,null,null,null,null,"X"]
[null,null,"Sizes & Shapes",null,null,null,null,null,null,null,null,null,null,null,null,null,null,"Stock","Note",{"$f":"+T$11","v":"Net Price"},"U/M",{"$f":"+V$11","v":"Code"},null,"Disc.","Net",null,"Chg","Net Price",{"$f":"+AC$11","v":"Disc"},"Act. Cost","GP%","Adj.",{"$f":"+AG$11","v":"Group"},"Price",null,null,"Calc Price",".05 Round","Cents","Round to",null,"X"]
[null,null,"PRICING LISTED IS NET PRICING. TRADE DISCOUNTS DO NOT APPLY.",null,null,null,null,null,null,null,null,null,null,null,null,null,null,null,null,null,null,null,null,null,null,null,null,null,null,null,null,null,null,null,null,null,null,null,null,null,null,"X"]
[null,null,null,null,null,null,null,null,null,null,null,null,null,null,null," ",null,null,null,null,null,null,null,null,null,null,null,null,null,null,null,null,null,null,null,null,null,null,null,null,null,"X"]
[null,null,"Step 1:  Choose a Shower Pan",null,null,null,null,null,null,null,null,null,null,null,null,null,null,null,null,null,null,null,null,null,null,null,null,null,null,null,null,null,null,null,null,null,null,null,null,null,null,"X"]
[null,null,null,null,null,null,null,null,null,null,null,null,null,null,null," ",null,null,null,null,null,null,null,null,null,null,null,null,null,null,null,null,null,null,null,null,null,null,null,null,null,"X"]
[null,null,"KurbX - Customizable Structural Shower Pans",null,null,null,null,null,null,null,null,null,null,null,null,null,null,null,"Item # Lookup:","KUSHPAN"]
[null,null,null,null,null,null,null,null,null,null,null,null,null,null,null," ",null,null,null,null,null,null,null,null,null,null,null,null,null,null,null,null,null,null,null,null,null,null,null,null,null,"X"]
[null,"Stocked Pans",null,null,"60\" x 36\"",null,"SB6036-CD",null,null,"Center Drain",null,null,null,null,null," ",null,"Stock",null,{"$f":"IF(Suggested=\"Yes\",AB25,AH25)","v":561.65},"EA",{"$f":"+Instructions!$B$3","v":"N"},null,{"$f":"+Instructions!$C$22","v":0},{"$f":"ROUND($AB25*(1-X25)+0.004999,2)","v":561.65},null,"",561.65,{"$f":"+X25","v":0},{"$f":"+Y25","v":561.65},{"$f":"(AH25-AD25)/AH25","v":0},null,1,{"$f":"SUM(AK25:AM25)+AF25","v":561.65},null,null,{"$f":"ROUND(AD25/(1-VLOOKUP(AG25,Group,2,FALSE)),2)","v":561.65},{"$f":"IF(VLOOKUP(AG25,Group,5,FALSE)=\"YES\",VLOOKUP(ROUND(ROUND(AK25,1)-AK25,2),Round,2,FALSE)+VLOOKUP(AG25,Group,6,FALSE),0)","v":0},{"$f":"IF(VLOOKUP(AG25,Group,7,FALSE)=\"\",0,ROUND(AK25-0.04999,1)-AK25+AN25)","v":0},{"$f":"IF(VLOOKUP(AG25,Group,7,FALSE)=\"\",\"\",VLOOKUP(AG25,Group,7,FALSE))","v":""},null,"X"]
[null,"Stocked Pans",null,null,"60\" x 36\"",null,"SB6036-OD-TR",null,null,"Off-Set Drain",null,null,null,null,null," ",null,"Stock",null,{"$f":"IF(Suggested=\"Yes\",AB26,AH26)","v":561.65},"EA",{"$f":"+Instructions!$B$3","v":"N"},null,{"$f":"+Instructions!$C$22","v":0},{"$f":"ROUND($AB26*(1-X26)+0.004999,2)","v":561.65},null,"",561.65,{"$f":"+X26","v":0},{"$f":"+Y26","v":561.65},{"$f":"(AH26-AD26)/AH26","v":0},null,1,{"$f":"SUM(AK26:AM26)+AF26","v":561.65},null,null,{"$f":"ROUND(AD26/(1-VLOOKUP(AG26,Group,2,FALSE)),2)","v":561.65},{"$f":"IF(VLOOKUP(AG26,Group,5,FALSE)=\"YES\",VLOOKUP(ROUND(ROUND(AK26,1)-AK26,2),Round,2,FALSE)+VLOOKUP(AG26,Group,6,FALSE),0)","v":0},{"$f":"IF(VLOOKUP(AG26,Group,7,FALSE)=\"\",0,ROUND(AK26-0.04999,1)-AK26+AN26)","v":0},{"$f":"IF(VLOOKUP(AG26,Group,7,FALSE)=\"\",\"\",VLOOKUP(AG26,Group,7,FALSE))","v":""},null,"X"]
[null,"Stocked Pans",null,null,"48\" x 48\"",null,"SB4848-CD",null,null,"Center Drain",null,null,null,null,null," ",null,"Stock",null,{"$f":"IF(Suggested=\"Yes\",AB27,AH27)","v":577},"EA",{"$f":"+Instructions!$B$3","v":"N"},null,{"$f":"+Instructions!$C$22","v":0},{"$f":"ROUND($AB27*(1-X27)+0.004999,2)","v":577},null,"",577,{"$f":"+X27","v":0},{"$f":"+Y27","v":577},{"$f":"(AH27-AD27)/AH27","v":0},null,1,{"$f":"SUM(AK27:AM27)+AF27","v":577},null,null,{"$f":"ROUND(AD27/(1-VLOOKUP(AG27,Group,2,FALSE)),2)","v":577},{"$f":"IF(VLOOKUP(AG27,Group,5,FALSE)=\"YES\",VLOOKUP(ROUND(ROUND(AK27,1)-AK27,2),Round,2,FALSE)+VLOOKUP(AG27,Group,6,FALSE),0)","v":0},{"$f":"IF(VLOOKUP(AG27,Group,7,FALSE)=\"\",0,ROUND(AK27-0.04999,1)-AK27+AN27)","v":0},{"$f":"IF(VLOOKUP(AG27,Group,7,FALSE)=\"\",\"\",VLOOKUP(AG27,Group,7,FALSE))","v":""},null,"X"]
[null,"Stocked Pans",null,null,"60\" x 48\"",null,"SB6048-CD",null,null,"Center Drain",null,null,null,null,null," ",null,"Stock",null,{"$f":"IF(Suggested=\"Yes\",AB28,AH28)","v":602.45000000000005},"EA",{"$f":"+Instructions!$B$3","v":"N"},null,{"$f":"+Instructions!$C$22","v":0},{"$f":"ROUND($AB28*(1-X28)+0.004999,2)","v":602.45000000000005},null,"",602.45000000000005,0,602.45000000000005,0,null,1,602.45000000000005,null,null,602.45000000000005,0,0,"",null,"X"]
[null,"Stocked Pans",null,null,"59\" x 59\"",null,"SB6060-CD",null,null,"Center Drain",null,null,null,null,null," ",null,"Stock",null,{"$f":"IF(Suggested=\"Yes\",AB29,AH29)","v":703.25},"EA",{"$f":"+Instructions!$B$3","v":"N"},null,{"$f":"+Instructions!$C$22","v":0},{"$f":"ROUND($AB29*(1-X29)+0.004999,2)","v":703.25},null,"",703.25,0,703.25,0,null,1,703.25,null,null,703.25,0,0,"",null,"X"]
[null,"Stocked Pans",null,null,"71\" x 47-1/4\"",null,"SB7248-CD",null,null,"Center Drain",null,null,null,null,null," ",null,"Stock",null,{"$f":"IF(Suggested=\"Yes\",AB30,AH30)","v":661.7},"EA",{"$f":"+Instructions!$B$3","v":"N"},null,{"$f":"+Instructions!$C$22","v":0},{"$f":"ROUND($AB30*(1-X30)+0.004999,2)","v":661.7},null,"",661.7,{"$f":"+X30","v":0},{"$f":"+Y30","v":661.7},{"$f":"(AH30-AD30)/AH30","v":0},null,1,{"$f":"SUM(AK30:AM30)+AF30","v":661.7},null,null,{"$f":"ROUND(AD30/(1-VLOOKUP(AG30,Group,2,FALSE)),2)","v":661.7},{"$f":"IF(VLOOKUP(AG30,Group,5,FALSE)=\"YES\",VLOOKUP(ROUND(ROUND(AK30,1)-AK30,2),Round,2,FALSE)+VLOOKUP(AG30,Group,6,FALSE),0)","v":0},{"$f":"IF(VLOOKUP(AG30,Group,7,FALSE)=\"\",0,ROUND(AK30-0.04999,1)-AK30+AN30)","v":0},{"$f":"IF(VLOOKUP(AG30,Group,7,FALSE)=\"\",\"\",VLOOKUP(AG30,Group,7,FALSE))","v":""},null,"X"]
[null,null,null,null,null,null,null,null,null,null,null,null,null,null,null," ",null,null,null,null,null,null,null,null,null,null,null,null,null,null,null,null,null,null,null,null,null,null,null,null,null,"X"]
[null,null,"ExtendIT - Shower Pan Filler",null,null,null,null,null,null,null,null,null,null,null,null," ",null,null,"Item # Lookup:","KUSHPAN",null,null,null,null,null,null,null,null,null,null,null,null,null,null,null,null,null,null,null,null,null,"X"]
[null,null,null,null,null,null,null,null,null,null,null,null,null,null,null," ",null,null,null,null,null,null,null,null,null,null,null,null,null,null,null,null,null,null,null,null,null,null,null,null,null,"X"]
[null,"Stocked Pans",null,null,"3\" x 48\"",null,"3-ExtendIT-48",null,null,"Extend-It Mini Pitch Filler (2 Pack)",null,null,null,null,null," ",null,"Stock",null,{"$f":"IF(Suggested=\"Yes\",AB34,AH34)","v":30.3},"EA",{"$f":"+Instructions!$B$3","v":"N"},null,{"$f":"+Instructions!$C$22","v":0},{"$f":"ROUND($AB34*(1-X34)+0.004999,2)","v":30.3},null,"",30.3,{"$f":"+X34","v":0},{"$f":"+Y34","v":30.3},{"$f":"(AH34-AD34)/AH34","v":0},null,1,{"$f":"SUM(AK34:AM34)+AF34","v":30.3},null,null,{"$f":"ROUND(AD34/(1-VLOOKUP(AG34,Group,2,FALSE)),2)","v":30.3},{"$f":"IF(VLOOKUP(AG34,Group,5,FALSE)=\"YES\",VLOOKUP(ROUND(ROUND(AK34,1)-AK34,2),Round,2,FALSE)+VLOOKUP(AG34,Group,6,FALSE),0)","v":0},{"$f":"IF(VLOOKUP(AG34,Group,7,FALSE)=\"\",0,ROUND(AK34-0.04999,1)-AK34+AN34)","v":0},{"$f":"IF(VLOOKUP(AG34,Group,7,FALSE)=\"\",\"\",VLOOKUP(AG34,Group,7,FALSE))","v":""},null,"X"]
[null,null,null,null,null,null,null,null,null,null,null,null,null,null,null,null,null,null,null,null,null,null,null,null,null,null,null,null,null,null,null,null,null,null,null,null,null,null,null,null,null,"X"]
[null,null,"KurbIT - Low Profile Curbs",null,null,null,null,null,null,null,null,null,null,null,null,null,null,null,"Item # Lookup:","KUSHPAN",null,null,null,null,null,null,null,null,null,null,null,null,null,null,null,null,null,null,null,null,null,"X"]
[null,null,null,null,null,null,null,null,null,null,null,null,null,null,null," ",null,null,null,null,null,null,null,null,null,null,null,null,null,null,null,null,null,null,null,null,null,null,null,null,null,"X"]
[null,"Non-Stock Pans",null,null,"24\"",null,"KurbIT-24",null,null,"Shower Curb + 2 spacers",null,null,null,null,null,null,null,null,null,{"$f":"IF(Suggested=\"Yes\",AB38,AH38)","v":22.35},"EA",{"$f":"+Instructions!$B$3","v":"N"},null,{"$f":"+Instructions!$C$22","v":0},{"$f":"ROUND($AB38*(1-X38)+0.004999,2)","v":22.35},null,"",22.35,{"$f":"+X38","v":0},{"$f":"+Y38","v":22.35},{"$f":"(AH38-AD38)/AH38","v":0},null,2,{"$f":"SUM(AK38:AM38)+AF38","v":22.35},null,null,{"$f":"ROUND(AD38/(1-VLOOKUP(AG38,Group,2,FALSE)),2)","v":22.35},{"$f":"IF(VLOOKUP(AG38,Group,5,FALSE)=\"YES\",VLOOKUP(ROUND(ROUND(AK38,1)-AK38,2),Round,2,FALSE)+VLOOKUP(AG38,Group,6,FALSE),0)","v":0},{"$f":"IF(VLOOKUP(AG38,Group,7,FALSE)=\"\",0,ROUND(AK38-0.04999,1)-AK38+AN38)","v":0},{"$f":"IF(VLOOKUP(AG38,Group,7,FALSE)=\"\",\"\",VLOOKUP(AG38,Group,7,FALSE))","v":""},null,"X"]
[null,"Non-Stock Pans",null,null,"36\"",null,"KurbIT-36",null,null,"Shower Curb + 2 spacers",null,null,null,null,null,null,null,null,null,34.049999999999997,"EA",{"$f":"+Instructions!$B$3","v":"N"},null,{"$f":"+Instructions!$C$22","v":0},34.049999999999997,null,"",34.049999999999997,0,34.049999999999997,0,null,2,34.049999999999997,null,null,34.049999999999997,0,0,"",null,"X"]
[null,"Stocked Pans",null,null,"36\" Kit",null,"KurbIT-36-COV",null,null,"36\" Shower Curb w/ 2 SeeLIT Covers + 2 spacers",null,null,null,null,null,null,null,"Stock","a",63.15,"EA",{"$f":"+Instructions!$B$3","v":"N"},null,{"$f":"+Instructions!$C$22","v":0},63.15,null,"",63.15,0,63.15,0,null,1,63.15,null,null,63.15,0,0,"",null,"X"]
[null,"Stocked Pans",null,null,"48\" Kit",null,"KurbIT-48-COV",null,null,"24\" + 24\" Shower Curbs w/ 2 SeeLIT Covers + 4 spacers",null,null,null,null,null,null,null,"Stock","a",70.349999999999994,"EA",{"$f":"+Instructions!$B$3","v":"N"},null,{"$f":"+Instructions!$C$22","v":0},70.349999999999994,null,"",70.349999999999994,0,70.349999999999994,0,null,1,70.349999999999994,null,null,70.349999999999994,0,0,"",null,"X"]
[null,"Stocked Pans",null,null,"60\" Kit",null,"KurbIT-60-COV",null,null,"24\" + 36\" Shower Curbs w/ 2 SeeLIT Covers + 4 spacers",null,null,null,null,null,null,null,"Stock","a",77.55,"EA",{"$f":"+Instructions!$B$3","v":"N"},null,{"$f":"+Instructions!$C$22","v":0},77.55,null,"",77.55,0,77.55,0,null,1,77.55,null,null,77.55,0,0,"",null,"X"]
[null,"Non-Stock Pans",null,null,"72\" Kit",null,"KurbIT-72-COV",null,null,"36\" + 36\" Shower Curbs w/ 2 SeeLIT Covers + 4 spacers",null,null,null,null,null,null,null,"Stock","a",105.05,"EA",{"$f":"+Instructions!$B$3","v":"N"},null,{"$f":"+Instructions!$C$22","v":0},105.05,null,"",105.05,0,105.05,0,null,2,105.05,null,null,105.05,0,0,"",null,"X"]
[null,null,null,null,null,null,null,null,null,null,null,null,null,null,null,null,null,null,null,null,null,null,null,null,null,null,null,null,null,null,null,null,null,null,null,null,null,null,null,null,null,"X"]
[null,null,null,"Notes:","a) Also includes 1 tube construction adhesive and 2 internal corners. ",null,null,null,null,null,null,null,null,null,null,null,null,null,null,null,null,null,null,null,null,null,null,null,null,null,null,null,null,null,null,null,null,null,null,null,null,"X"]
[]
[null,null,"Step 2:  Choose an Installation Package",null,null,null,null,null,null,null,null,null,null,null,null,null,null,null,null,null,null,null,null,null,null,null,null,null,null,null,null,null,null,null,null,null,null,null,null,null,null,"X"]
[null,null,null,null,null,null,null,null,null,null,null,null,null,null,null," ",null,null,null,null,null,null,null,null,null,null,null,null,null,null,null,null,null,null,null,null,null,null,null,null,null,"X"]
[null,null,"Installation Package",null,null,null,null,null,null,null,null,null,null,null,null,null,null,null,"Item # Lookup:","KUINSTA"]
[null,null,null,null,null,null,null,null,null,null,null,null,null,null,null," ",null,null,null,null,null,null,null,null,null,null,null,null,null,null,null,null,null,null,null,null,null,null,null,null,null,"X"]
[null,"Installation Pkg",null,null,"PVC Kit",null,"IP-1-PVC",null,null,"Wood Installation Kit w/ Drain Support",null,null,null,null,null,null,null,"Stock","a",{"$f":"IF(Suggested=\"Yes\",AB51,AH51)","v":172.95},"EA",{"$f":"+Instructions!$B$3","v":"N"},null,{"$f":"+Instructions!$C$22","v":0},{"$f":"ROUND($AB51*(1-X51)+0.004999,2)","v":172.95},null,"",172.95,{"$f":"+X51","v":0},{"$f":"+Y51","v":172.95},{"$f":"(AH51-AD51)/AH51","v":0},null,3,{"$f":"SUM(AK51:AM51)+AF51","v":172.95},null,null,{"$f":"ROUND(AD51/(1-VLOOKUP(AG51,Group,2,FALSE)),2)","v":172.95},{"$f":"IF(VLOOKUP(AG51,Group,5,FALSE)=\"YES\",VLOOKUP(ROUND(ROUND(AK51,1)-AK51,2),Round,2,FALSE)+VLOOKUP(AG51,Group,6,FALSE),0)","v":0},{"$f":"IF(VLOOKUP(AG51,Group,7,FALSE)=\"\",0,ROUND(AK51-0.04999,1)-AK51+AN51)","v":0},{"$f":"IF(VLOOKUP(AG51,Group,7,FALSE)=\"\",\"\",VLOOKUP(AG51,Group,7,FALSE))","v":""},null,"X"]
[null,"Installation Pkg",null,null,"PVC Kit",null,"IP-2-PVC",null,null,"Wood Installation Kit (underneath accessible plumbing)",null,null,null,null,null,null,null,"Stock","b",{"$f":"IF(Suggested=\"Yes\",AB52,AH52)","v":71.95},"EA",{"$f":"+Instructions!$B$3","v":"N"},null,{"$f":"+Instructions!$C$22","v":0},71.95,null,"",71.95,0,71.95,0,null,3,71.95,null,null,{"$f":"ROUND(AD52/(1-VLOOKUP(AG52,Group,2,FALSE)),2)","v":71.95},{"$f":"IF(VLOOKUP(AG52,Group,5,FALSE)=\"YES\",VLOOKUP(ROUND(ROUND(AK52,1)-AK52,2),Round,2,FALSE)+VLOOKUP(AG52,Group,6,FALSE),0)","v":0},{"$f":"IF(VLOOKUP(AG52,Group,7,FALSE)=\"\",0,ROUND(AK52-0.04999,1)-AK52+AN52)","v":0},{"$f":"IF(VLOOKUP(AG52,Group,7,FALSE)=\"\",\"\",VLOOKUP(AG52,Group,7,FALSE))","v":""},null,"X"]
[null,"Installation Pkg",null,null,"PVC Kit",null,"IP-3-PVC",null,null,"Wood or Concrete Installation Kit for New Construction",null,null,null,null,null,null,null,"Stock","c",{"$f":"IF(Suggested=\"Yes\",AB53,AH53)","v":29.2},"EA",{"$f":"+Instructions!$B$3","v":"N"},null,{"$f":"+Instructions!$C$22","v":0},29.2,null,"",29.2,0,29.2,0,null,3,29.2,null,null,{"$f":"ROUND(AD53/(1-VLOOKUP(AG53,Group,2,FALSE)),2)","v":29.2},{"$f":"IF(VLOOKUP(AG53,Group,5,FALSE)=\"YES\",VLOOKUP(ROUND(ROUND(AK53,1)-AK53,2),Round,2,FALSE)+VLOOKUP(AG53,Group,6,FALSE),0)","v":0},{"$f":"IF(VLOOKUP(AG53,Group,7,FALSE)=\"\",0,ROUND(AK53-0.04999,1)-AK53+AN53)","v":0},{"$f":"IF(VLOOKUP(AG53,Group,7,FALSE)=\"\",\"\",VLOOKUP(AG53,Group,7,FALSE))","v":""},null,"X"]
[null,null,null,null,null,null,null,null,null,null,null,null,null,null,null,null,null,null,null,null,null,null,null,null,null,null,null,null,null,null,null,null,null,null,null,null,null,null,null,null,null,"X"]
[null,"Installation Pkg",null,null,"ABS Kit",null,"IP-1-ABS",null,null,"Wood Installation Kit w/ Drain Support",null,null,null,null,null,null,null,null,"a",{"$f":"IF(Suggested=\"Yes\",AB55,AH55)","v":172.95},"EA",{"$f":"+Instructions!$B$3","v":"N"},null,{"$f":"+Instructions!$C$22","v":0},172.95,null,"",172.95,0,172.95,0,null,3,172.95,null,null,{"$f":"ROUND(AD55/(1-VLOOKUP(AG55,Group,2,FALSE)),2)","v":172.95},{"$f":"IF(VLOOKUP(AG55,Group,5,FALSE)=\"YES\",VLOOKUP(ROUND(ROUND(AK55,1)-AK55,2),Round,2,FALSE)+VLOOKUP(AG55,Group,6,FALSE),0)","v":0},{"$f":"IF(VLOOKUP(AG55,Group,7,FALSE)=\"\",0,ROUND(AK55-0.04999,1)-AK55+AN55)","v":0},{"$f":"IF(VLOOKUP(AG55,Group,7,FALSE)=\"\",\"\",VLOOKUP(AG55,Group,7,FALSE))","v":""},null,"X"]
[null,"Installation Pkg",null,null,"ABS Kit",null,"IP-2-ABS",null,null,"Wood Installation Kit (underneath accessible plumbing)",null,null,null,null,null,null,null,null,"b",{"$f":"IF(Suggested=\"Yes\",AB56,AH56)","v":71.95},"EA",{"$f":"+Instructions!$B$3","v":"N"},null,{"$f":"+Instructions!$C$22","v":0},71.95,null,"",71.95,0,71.95,0,null,3,71.95,null,null,{"$f":"ROUND(AD56/(1-VLOOKUP(AG56,Group,2,FALSE)),2)","v":71.95},{"$f":"IF(VLOOKUP(AG56,Group,5,FALSE)=\"YES\",VLOOKUP(ROUND(ROUND(AK56,1)-AK56,2),Round,2,FALSE)+VLOOKUP(AG56,Group,6,FALSE),0)","v":0},{"$f":"IF(VLOOKUP(AG56,Group,7,FALSE)=\"\",0,ROUND(AK56-0.04999,1)-AK56+AN56)","v":0},{"$f":"IF(VLOOKUP(AG56,Group,7,FALSE)=\"\",\"\",VLOOKUP(AG56,Group,7,FALSE))","v":""},null,"X"]
[null,"Installation Pkg",null,null,"ABS Kit",null,"IP-3-ABS",null,null,"Wood or Concrete Installation Kit for New Construction",null,null,null,null,null,null,null,null,"c",{"$f":"IF(Suggested=\"Yes\",AB57,AH57)","v":29.2},"EA",{"$f":"+Instructions!$B$3","v":"N"},null,{"$f":"+Instructions!$C$22","v":0},29.2,null,"",29.2,0,29.2,0,null,3,29.2,null,null,{"$f":"ROUND(AD57/(1-VLOOKUP(AG57,Group,2,FALSE)),2)","v":29.2},{"$f":"IF(VLOOKUP(AG57,Group,5,FALSE)=\"YES\",VLOOKUP(ROUND(ROUND(AK57,1)-AK57,2),Round,2,FALSE)+VLOOKUP(AG57,Group,6,FALSE),0)","v":0},{"$f":"IF(VLOOKUP(AG57,Group,7,FALSE)=\"\",0,ROUND(AK57-0.04999,1)-AK57+AN57)","v":0},{"$f":"IF(VLOOKUP(AG57,Group,7,FALSE)=\"\",\"\",VLOOKUP(AG57,Group,7,FALSE))","v":""},null,"X"]
[null,null,null,null,null,null,null,null,null,null,null,null,null,null,null,null,null,null,null,null,null,null,null,null,null,null,null,null,null,null,null,null,null,null,null,null,null,null,null,null,null,"X"]
[null,null,null,"Notes:","a) Wood Installation Kit w/ Drain Support - Installation on wood substrates when there is NO plumbing access from underneath.",null,null,null,null,null,null,null,null,null,null,null,null,null,null,null,null,null,null,null,null,null,null,null,null,null,null,null,null,null,null,null,null,null,null,null,null,"X"]
[null,null,null,null,"     - 1 Proprietary drain support block",null,null,null,null,null,"- 6 10-oz tubes of approved construction adhesive"]
[null,null,null,null,"     - 2 Drain support cleats",null,null,null,null,null,"- 20 Coated deck screws"]
[null,null,null,null,"     - 1 Drain Waste Connector",null,null,null,null,null,"- 1 2\" driver bit"]
[null,null,null,null,"     - 1 Mini tube of pure silicone"]
[null,null,null,null,"b) Wood Installation Kit - Installation on wood substrates when there IS plumbing access from underneath."]
[null,null,null,null,"     - 1 Drain Waste Connector",null,null,null,null,null,"- 4 10-oz tubes of approved construction adhesive",null,null,null,null,null,null,null,null,null,null,null,null,null,null,null,null,null,null,null,null,null,null,null,null,null,null,null,null,null,null,"X"]
[null,null,null,null,"     - 1 Mini tube of pure silicone",null,null,null,null,null,"- 20 Coated deck screws"]
[null,null,null,null,null,null,null,null,null,null,"- 1 2\" driver bit"]
[null,null,null,null,"c) Wood or Concrete Installation Kit for New Construction"]
[null,null,null,null,"     - 1 Drain Waste Connector",null,null,null,null,null,"- 20 Coated deck screws (Note: Use tap cons for concrete installations - not provided)"]
[null,null,null,null,"     - 1 Mini tube of pure silicone",null,null,null,null,null,"- 1 2\" driver bit"]
[null,null,null,null,null,null,null,null,null,null,null,null,null,null,null,null,null,null,null,null,null,null,null,null,null,null,null,null,null,null,null,null,null,null,null,null,null,null,null,null,null,"X"]
[null,null,"Step 3:  Choose a Drain Assembly",null,null,null,null,null,null,null,null,null,null,null,null,null,null,null,null,null,null,null,null,null,null,null,null,null,null,null,null,null,null,null,null,null,null,null,null,null,null,"X"]
[null,null,null,null,null,null,null,null,null,null,null,null,null,null,null," ",null,null,null,null,null,null,null,null,null,null,null,null,null,null,null,null,null,null,null,null,null,null,null,null,null,"X"]
[null,null,"KurbX - 4\" Square Drain Assemblies",null,null,null,null,null,null,null,null,null,null,null,null,null,null,null,"Item # Lookup:","KUSHDRA"]
[null,null,null,null,null,null,null,null,null,null,null,null,null,null,null," ",null,null,null,null,null,null,null,null,null,null,null,null,null,null,null,null,null,null,null,null,null,null,null,null,null,"X"]
[null,null,null,"Grid Pattern Design:"]
[null,null,null,null,null,null,null,null,null,null,null,null,null,null,null,null,null,null,null,null,null,null,null,null,null,null,null,null,null,null,null,null,null,null,null,null,null,null,null,null,null,"X"]
[null,"Drains",null,null,"4\" x 4\"",null,"GP-100-BS",null,null,"Brushed Stainless Steel",null,null,null,null,null,null,null,"Stock",null,{"$f":"IF(Suggested=\"Yes\",AB78,AH78)","v":151.30000000000001},"EA",{"$f":"+Instructions!$B$3","v":"N"},null,{"$f":"+Instructions!$C$22","v":0},{"$f":"ROUND($AB78*(1-X78)+0.004999,2)","v":151.30000000000001},null,"",151.30000000000001,{"$f":"+X78","v":0},{"$f":"+Y78","v":151.30000000000001},{"$f":"(AH78-AD78)/AH78","v":0},null,4,{"$f":"SUM(AK78:AM78)+AF78","v":151.30000000000001},null,null,{"$f":"ROUND(AD78/(1-VLOOKUP(AG78,Group,2,FALSE)),2)","v":151.30000000000001},{"$f":"IF(VLOOKUP(AG78,Group,5,FALSE)=\"YES\",VLOOKUP(ROUND(ROUND(AK78,1)-AK78,2),Round,2,FALSE)+VLOOKUP(AG78,Group,6,FALSE),0)","v":0},{"$f":"IF(VLOOKUP(AG78,Group,7,FALSE)=\"\",0,ROUND(AK78-0.04999,1)-AK78+AN78)","v":0},{"$f":"IF(VLOOKUP(AG78,Group,7,FALSE)=\"\",\"\",VLOOKUP(AG78,Group,7,FALSE))","v":""},null,"X"]
[null,"Drains",null,null,"4\" x 4\"",null,"GP-200-CH",null,null,"Chrome",null,null,null,null,null,null,null,"Stock",null,151.30000000000001,"EA",{"$f":"+Instructions!$B$3","v":"N"},null,{"$f":"+Instructions!$C$22","v":0},151.30000000000001,null,"",151.30000000000001,0,151.30000000000001,0,null,4,151.30000000000001,null,null,151.30000000000001,0,0,"",null,"X"]
[null,"Drains",null,null,"4\" x 4\"",null,"GP-300-ORB",null,null,"Oil Rubbed Bronze",null,null,null,null,null,null,null,"Stock",null,225.4,"EA",{"$f":"+Instructions!$B$3","v":"N"},null,{"$f":"+Instructions!$C$22","v":0},225.4,null,"",225.4,0,225.4,0,null,4,225.4,null,null,225.4,0,0,"",null,"X"]
[null,"Drains",null,null,"4\" x 4\"",null,"GP-400-MB",null,null,"Matte Black",null,null,null,null,null,null,null,"Stock",null,225.4,"EA",{"$f":"+Instructions!$B$3","v":"N"},null,{"$f":"+Instructions!$C$22","v":0},225.4,null,"",225.4,0,225.4,0,null,4,225.4,null,null,225.4,0,0,"",null,"X"]
[null,null,null,null,null,null,null,null,null,null,null,null,null,null,null,null,null,null,null,null,null,null,null,null,null,null,null,null,null,null,null,null,null,null,null,null,null,null,null,null,null,"X"]
[null,null,null,"Notes:","The Grid Pattern Design Drain Assemblies are being discontinued by Kurbx and are available while supplies last.",null,null,null,null,null,null,null,null,null,null,null,null,null,null,null,null,null,null,null,null,null,null,null,null,null,null,null,null,null,null,null,null,null,null,null,null,"X"]
[null,null,null,null,null,null,null,null,null,null,null,null,null,null,null," ",null,null,null,null,null,null,null,null,null,null,null,null,null,null,null,null,null,null,null,null,null,null,null,null,null,"X"]
[null,null,null,"Lattice Pattern Design (Polycarbonate/Frameless):"]
[null,null,null,null,null,null,null,null,null,null,null,null,null,null,null,null,null,null,null,null,null,null,null,null,null,null,null,null,null,null,null,null,null,null,null,null,null,null,null,null,null,"X"]
[null,"Drains",null,null,"4\" x 4\"",null,"LAT-1-BS",null,null,"Brushed Stainless Steel",null,null,null,null,null,null,null,null,null,{"$f":"IF(Suggested=\"Yes\",AB87,AH87)","v":141.05000000000001},"EA",{"$f":"+Instructions!$B$3","v":"N"},null,{"$f":"+Instructions!$C$22","v":0},{"$f":"ROUND($AB87*(1-X87)+0.004999,2)","v":141.05000000000001},null,"",141.05000000000001,{"$f":"+X87","v":0},{"$f":"+Y87","v":141.05000000000001},{"$f":"(AH87-AD87)/AH87","v":0},null,4,{"$f":"SUM(AK87:AM87)+AF87","v":141.05000000000001},null,null,{"$f":"ROUND(AD87/(1-VLOOKUP(AG87,Group,2,FALSE)),2)","v":141.05000000000001},{"$f":"IF(VLOOKUP(AG87,Group,5,FALSE)=\"YES\",VLOOKUP(ROUND(ROUND(AK87,1)-AK87,2),Round,2,FALSE)+VLOOKUP(AG87,Group,6,FALSE),0)","v":0},{"$f":"IF(VLOOKUP(AG87,Group,7,FALSE)=\"\",0,ROUND(AK87-0.04999,1)-AK87+AN87)","v":0},{"$f":"IF(VLOOKUP(AG87,Group,7,FALSE)=\"\",\"\",VLOOKUP(AG87,Group,7,FALSE))","v":""},null,"X"]
[null,"Drains",null,null,"4\" x 4\"",null,"LAT-2-CH",null,null,"Chrome",null,null,null,null,null,null,null,null,null,153.4,"EA",{"$f":"+Instructions!$B$3","v":"N"},null,{"$f":"+Instructions!$C$22","v":0},153.4,null,"",153.4,0,153.4,0,null,4,153.4,null,null,153.4,0,0,"",null,"X"]
[null,"Drains",null,"  ","4\" x 4\"",null,"LAT-3-ORB",null,null,"Oil Rubbed Bronze",null,null,null,null,null,null,null,null,null,202.8,"EA",{"$f":"+Instructions!$B$3","v":"N"},null,{"$f":"+Instructions!$C$22","v":0},202.8,null,"",202.8,0,202.8,0,null,4,202.8,null,null,202.8,0,0,"",null,"X"]
[null,"Drains",null,null,"4\" x 4\"",null,"LAT-4-MB",null,null,"Matte Black",null,null,null,null,null,null,null,null,null,{"$f":"IF(Suggested=\"Yes\",AB90,AH90)","v":223.4},"EA",{"$f":"+Instructions!$B$3","v":"N"},null,{"$f":"+Instructions!$C$22","v":0},{"$f":"ROUND($AB90*(1-X90)+0.004999,2)","v":223.4},null,"",223.4,{"$f":"+X90","v":0},{"$f":"+Y90","v":223.4},{"$f":"(AH90-AD90)/AH90","v":0},null,4,{"$f":"SUM(AK90:AM90)+AF90","v":223.4},null,null,{"$f":"ROUND(AD90/(1-VLOOKUP(AG90,Group,2,FALSE)),2)","v":223.4},{"$f":"IF(VLOOKUP(AG90,Group,5,FALSE)=\"YES\",VLOOKUP(ROUND(ROUND(AK90,1)-AK90,2),Round,2,FALSE)+VLOOKUP(AG90,Group,6,FALSE),0)","v":0},{"$f":"IF(VLOOKUP(AG90,Group,7,FALSE)=\"\",0,ROUND(AK90-0.04999,1)-AK90+AN90)","v":0},{"$f":"IF(VLOOKUP(AG90,Group,7,FALSE)=\"\",\"\",VLOOKUP(AG90,Group,7,FALSE))","v":""},null,"X"]
[null,"Drains",null,null,"4\" x 4\"",null,"LAT-5-MBB",null,null,"Modern Brushed Brass",null,null,null,null,null,null,null,null,null,215.15,"EA",{"$f":"+Instructions!$B$3","v":"N"},null,{"$f":"+Instructions!$C$22","v":0},215.15,null,"",215.15,0,215.15,0,null,4,215.15,null,null,215.15,0,0,"",null,"X"]
[null,null,null,null,null,null,null,null,null,null,null,null,null,null,null," ",null,null,null,null,null,null,null,null,null,null,null,null,null,null,null,null,null,null,null,null,null,null,null,null,null,"X"]
[null,null,"continued on next page",null,null,null,null,null,null,null,null,null,null,null,null," ",null,null,null,null,null,null,null,null,null,null,null,null,null,null,null,null,null,null,null,null,null,null,null,null,null,"X"]
[null,null,"KurbX - 4\" Square Drain Assemblies - continued",null,null,null,null,null,null,null,null,null,null,null,null,null,null,null,"Item # Lookup:","KUSHDRA"]
[null,null,null,null,null,null,null,null,null,null,null,null,null,null,null," ",null,null,null,null,null,null,null,null,null,null,null,null,null,null,null,null,null,null,null,null,null,null,null,null,null,"X"]
[null,null,null,"Bar Pattern Design (Polycarbonate/Frameless):"]
[null,null,null,null,null,null,null,null,null,null,null,null,null,null,null,null,null,null,null,null,null,null,null,null,null,null,null,null,null,null,null,null,null,null,null,null,null,null,null,null,null,"X"]
[null,"Drains",null,null,"4\" x 4\"",null,"BAR-10-SN",null,null,"Satin Nickel",null,null,null,null,null,null,null,null,null,{"$f":"IF(Suggested=\"Yes\",AB98,AH98)","v":215.15},"EA",{"$f":"+Instructions!$B$3","v":"N"},null,{"$f":"+Instructions!$C$22","v":0},{"$f":"ROUND($AB98*(1-X98)+0.004999,2)","v":215.15},null,"",215.15,{"$f":"+X98","v":0},{"$f":"+Y98","v":215.15},{"$f":"(AH98-AD98)/AH98","v":0},null,4,{"$f":"SUM(AK98:AM98)+AF98","v":215.15},null,null,{"$f":"ROUND(AD98/(1-VLOOKUP(AG98,Group,2,FALSE)),2)","v":215.15},{"$f":"IF(VLOOKUP(AG98,Group,5,FALSE)=\"YES\",VLOOKUP(ROUND(ROUND(AK98,1)-AK98,2),Round,2,FALSE)+VLOOKUP(AG98,Group,6,FALSE),0)","v":0},{"$f":"IF(VLOOKUP(AG98,Group,7,FALSE)=\"\",0,ROUND(AK98-0.04999,1)-AK98+AN98)","v":0},{"$f":"IF(VLOOKUP(AG98,Group,7,FALSE)=\"\",\"\",VLOOKUP(AG98,Group,7,FALSE))","v":""},null,"X"]
[null,"Drains",null,null,"4\" x 4\"",null,"BAR-20-PCH",null,null,"Polished Chrome",null,null,null,null,null,null,null,null,null,178.1,"EA",{"$f":"+Instructions!$B$3","v":"N"},null,{"$f":"+Instructions!$C$22","v":0},178.1,null,"",178.1,0,178.1,0,null,4,178.1,null,null,178.1,0,0,"",null,"X"]
[null,"Drains",null,"  ","4\" x 4\"",null,"BAR-30-PN",null,null,"Polished Nickel",null,null,null,null,null,null,null,null,null,215.15,"EA",{"$f":"+Instructions!$B$3","v":"N"},null,{"$f":"+Instructions!$C$22","v":0},215.15,null,"",215.15,0,215.15,0,null,4,215.15,null,null,215.15,0,0,"",null,"X"]
[null,"Drains",null,null,"4\" x 4\"",null,"BAR-40-MB",null,null,"Matte Black",null,null,null,null,null,null,null,null,null,239.85,"EA",{"$f":"+Instructions!$B$3","v":"N"},null,{"$f":"+Instructions!$C$22","v":0},239.85,null,"",239.85,0,239.85,0,null,4,239.85,null,null,239.85,0,0,"",null,"X"]
[null,"Drains",null,null,"4\" x 4\"",null,"BAR-50-SB",null,null,"Satin Brass",null,null,null,null,null,null,null,null,null,239.85,"EA",{"$f":"+Instructions!$B$3","v":"N"},null,{"$f":"+Instructions!$C$22","v":0},239.85,null,"",239.85,0,239.85,0,null,4,239.85,null,null,239.85,0,0,"",null,"X"]
[null,"Drains",null,null,"4\" x 4\"",null,"BAR-60-SO",null,null,"Riser Kit (Includes Riser, Construction Cover & Grate Key)",null,null,null,null,null,null,null,null,"a",{"$f":"IF(Suggested=\"Yes\",AB103,AH103)","v":29.9},"EA",{"$f":"+Instructions!$B$3","v":"N"},null,{"$f":"+Instructions!$C$22","v":0},{"$f":"ROUND($AB103*(1-X103)+0.004999,2)","v":29.9},null,"YES",29.9,{"$f":"+X103","v":0},{"$f":"+Y103","v":29.9},{"$f":"(AH103-AD103)/AH103","v":0},null,4,{"$f":"SUM(AK103:AM103)+AF103","v":29.9},null,null,{"$f":"ROUND(AD103/(1-VLOOKUP(AG103,Group,2,FALSE)),2)","v":29.9},{"$f":"IF(VLOOKUP(AG103,Group,5,FALSE)=\"YES\",VLOOKUP(ROUND(ROUND(AK103,1)-AK103,2),Round,2,FALSE)+VLOOKUP(AG103,Group,6,FALSE),0)","v":0},{"$f":"IF(VLOOKUP(AG103,Group,7,FALSE)=\"\",0,ROUND(AK103-0.04999,1)-AK103+AN103)","v":0},{"$f":"IF(VLOOKUP(AG103,Group,7,FALSE)=\"\",\"\",VLOOKUP(AG103,Group,7,FALSE))","v":""},null,"X"]
[null,"Drains",null,null,"4\" x 4\"",null,"BAR-GO-SO-XX",null,null,"Special Order Color (Grate Only)",null,null,null,null,null,null,null,null,"b",289.3,"EA",{"$f":"+Instructions!$B$3","v":"N"},null,{"$f":"+Instructions!$C$22","v":0},289.3,null,"new",289.3,0,289.3,0,null,4,289.3,null,null,289.3,0,0,"",null,"X"]
[null,"Drains",null,null,"4\" x 4\"",null,"TEMP-GRATE-1",null,null,"Temporary Drain Grate for Special Order Finishes",null,null,null,null,null,null,null,null,"c",{"$f":"IF(Suggested=\"Yes\",AB105,AH105)","v":62.8},"EA",{"$f":"+Instructions!$B$3","v":"N"},null,{"$f":"+Instructions!$C$22","v":0},{"$f":"ROUND($AB105*(1-X105)+0.004999,2)","v":62.8},null,"",62.8,{"$f":"+X105","v":0},{"$f":"+Y105","v":62.8},{"$f":"(AH105-AD105)/AH105","v":0},null,4,{"$f":"SUM(AK105:AM105)+AF105","v":62.8},null,null,{"$f":"ROUND(AD105/(1-VLOOKUP(AG105,Group,2,FALSE)),2)","v":62.8},{"$f":"IF(VLOOKUP(AG105,Group,5,FALSE)=\"YES\",VLOOKUP(ROUND(ROUND(AK105,1)-AK105,2),Round,2,FALSE)+VLOOKUP(AG105,Group,6,FALSE),0)","v":0},{"$f":"IF(VLOOKUP(AG105,Group,7,FALSE)=\"\",0,ROUND(AK105-0.04999,1)-AK105+AN105)","v":0},{"$f":"IF(VLOOKUP(AG105,Group,7,FALSE)=\"\",\"\",VLOOKUP(AG105,Group,7,FALSE))","v":""},null,"X"]
[null,null,null,null,null,null,null,null,null,null,null,null,null,null,null,null,null,null,null,null,null,null,null,null,null,null,null,null,null,null,null,null,null,null,null,null,null,null,null,null,null,"X"]
[null,null,null,"Notes:","a) Needed for Special Order Jaclo Color Grate.  The special order grate must be ordered separately. ",null,null,null,null,null,null,null,null,null,null,null,null,null,null,null,null,null,null,null,null,null,null,null,null,null,null,null,null,null,null,null,null,null,null,null,null,"X"]
[null,null,null,null,"b) The \"XX\" in the item number must be replaced with Jaclo color code.  See this link for available colors, codes,",null,null,null,null,null,null,null,null,null,null,null,null,null,null,null,null,null,null,null,null,null,null,null,null,null,null,null,null,null,null,null,null,null,null,null,null,"X"]
[null,null,null,null,"and approximate lead times:",null,null,null,"https://www.conestogatile.com/wp-content/uploads/2025/11/KurbXfinishes-5.pdf",null,null,null,null,null,null,null,null,null,null,null,null,null,null,null,null,null,null,null,null,null,null,null,null,null,null,null,null,null,null,null,null,"X"]
[null,null,null,null,"c) May be needed due to an extended lead time on a special order color grate.",null,null,null,null,null,null,null,null,null,null,null,null,null,null,null,null,null,null,null,null,null,null,null,null,null,null,null,null,null,null,null,null,null,null,null,null,"X"]
[null,null,null,null,null,null,null,null,null,null,null,null,null,null,null," ",null,null,null,null,null,null,null,null,null,null,null,null,null,null,null,null,null,null,null,null,null,null,null,null,null,"X"]
[null,null,"KurbX - Shelf",null,null,null,null,null,null,null,null,null,null,null,null,null,null,null,"Item # Lookup:","KUSHSHE"]
[null,null,null,null,null,null,null,null,null,null,null,null,null,null,null," ",null,null,null,null,null,null,null,null,null,null,null,null,null,null,null,null,null,null,null,null,null,null,null,null,null,"X"]
[null,null,null,"Lattice Pattern Shelf (Stainless Steel):"]
[null,null,null,null,null,null,null,null,null,null,null,null,null,null,null,null,null,null,null,null,null,null,null,null,null,null,null,null,null,null,null,null,null,null,null,null,null,null,null,null,null,"X"]
[null,"Drains",null,null,"10\" x 10\" x 13-3/4\"",null,"LAT-SHLF-1-BS",null,null,"Brushed Stainless Steel",null,null,null,null,null,null,null,null,null,{"$f":"IF(Suggested=\"Yes\",AB116,AH116)","v":112.25},"EA",{"$f":"+Instructions!$B$3","v":"N"},null,{"$f":"+Instructions!$C$22","v":0},{"$f":"ROUND($AB116*(1-X116)+0.004999,2)","v":112.25},null,"",112.25,{"$f":"+X116","v":0},{"$f":"+Y116","v":112.25},{"$f":"(AH116-AD116)/AH116","v":0},null,4,{"$f":"SUM(AK116:AM116)+AF116","v":112.25},null,null,{"$f":"ROUND(AD116/(1-VLOOKUP(AG116,Group,2,FALSE)),2)","v":112.25},{"$f":"IF(VLOOKUP(AG116,Group,5,FALSE)=\"YES\",VLOOKUP(ROUND(ROUND(AK116,1)-AK116,2),Round,2,FALSE)+VLOOKUP(AG116,Group,6,FALSE),0)","v":0},{"$f":"IF(VLOOKUP(AG116,Group,7,FALSE)=\"\",0,ROUND(AK116-0.04999,1)-AK116+AN116)","v":0},{"$f":"IF(VLOOKUP(AG116,Group,7,FALSE)=\"\",\"\",VLOOKUP(AG116,Group,7,FALSE))","v":""},null,"X"]
[null,"Drains",null,null,"10\" x 10\" x 13-3/4\"",null,"LAT-SHLF-2-CH",null,null,"Polished Chrome",null,null,null,null,null,null,null,null,null,120.45,"EA",{"$f":"+Instructions!$B$3","v":"N"},null,{"$f":"+Instructions!$C$22","v":0},120.45,null,"",120.45,0,120.45,0,null,4,120.45,null,null,120.45,0,0,"",null,"X"]
[null,"Drains",null,"  ","10\" x 10\" x 13-3/4\"",null,"LAT-SHLF-3-ORB",null,null,"Oil Rubbed Bronze",null,null,null,null,null,null,null,null,null,198.7,"EA",{"$f":"+Instructions!$B$3","v":"N"},null,{"$f":"+Instructions!$C$22","v":0},198.7,null,"",198.7,0,198.7,0,null,4,198.7,null,null,198.7,0,0,"",null,"X"]
[null,"Drains",null,null,"10\" x 10\" x 13-3/4\"",null,"LAT-SHLF-4-MB",null,null,"Matte Black",null,null,null,null,null,null,null,null,null,182.2,"EA",{"$f":"+Instructions!$B$3","v":"N"},null,{"$f":"+Instructions!$C$22","v":0},182.2,null,"",182.2,0,182.2,0,null,4,182.2,null,null,182.2,0,0,"",null,"X"]
[null,"Drains",null,null,"10\" x 10\" x 13-3/4\"",null,"LAT-SHLF-5-MBB",null,null,"Modern Brushed Brass",null,null,null," ",null,null,null,null,null,169.85,"EA",{"$f":"+Instructions!$B$3","v":"N"},null,{"$f":"+Instructions!$C$22","v":0},169.85,null,"",169.85,0,169.85,0,null,4,169.85,null,null,169.85,0,0,"",null,"X"]
[null,null,null,null,null,null,null,null,null,null,null,null,null,null,null,null,null,null,null,null,null,null,null,null,null,null,null,null,null,null,null,null,null,null,null,null,null,null,null,null,null,"X"]
[null,null,"Step 4:  Choose a Waterproofing Kit",null,null,null,null,null,null,null,null,null,null,null,null,null,null,null,null,null,null,null,null,null,null,null,null,null,null,null,null,null,null,null,null,null,null,null,null,null,null,"X"]
[null,null,null,null,null,null,null,null,null,null,null,null,null,null,null," ",null,null,null,null,null,null,null,null,null,null,null,null,null,null,null,null,null,null,null,null,null,null,null,null,null,"X"]
[null,null,"SeeLIT - Waterproofing Kits",null,null,null,null,null,null,null,null,null,null,null,null,null,null,null,"Item # Lookup:","KUWPKIT"]
[null,null,null,null,null,null,null,null,null,null,null,null,null,null,null," ",null,null,null,null,null,null,null,null,null,null,null,null,null,null,null,null,null,null,null,null,null,null,null,null,null,"X"]
[null,"Setting Materials",null,null,"Kit",null,"SeeLIT-MIN-500",null,null,"Waterproofing Kit",null,null,"(approx. coverage is 30 sf)",null,null,null,null,"Stock","a,c",{"$f":"IF(Suggested=\"Yes\",AB126,AH126)","v":175.8},"EA",{"$f":"+Instructions!$B$3","v":"N"},null,{"$f":"+Instructions!$C$22","v":0},{"$f":"ROUND($AB126*(1-X126)+0.004999,2)","v":175.8},null,"",175.8,{"$f":"+X126","v":0},{"$f":"+Y126","v":175.8},{"$f":"(AH126-AD126)/AH126","v":0},null,5,{"$f":"SUM(AK126:AM126)+AF126","v":175.8},null,null,{"$f":"ROUND(AD126/(1-VLOOKUP(AG126,Group,2,FALSE)),2)","v":175.8},{"$f":"IF(VLOOKUP(AG126,Group,5,FALSE)=\"YES\",VLOOKUP(ROUND(ROUND(AK126,1)-AK126,2),Round,2,FALSE)+VLOOKUP(AG126,Group,6,FALSE),0)","v":0},{"$f":"IF(VLOOKUP(AG126,Group,7,FALSE)=\"\",0,ROUND(AK126-0.04999,1)-AK126+AN126)","v":0},{"$f":"IF(VLOOKUP(AG126,Group,7,FALSE)=\"\",\"\",VLOOKUP(AG126,Group,7,FALSE))","v":""},null,"X"]
[null,"Setting Materials",null,null,"Kit",null,"SeeLIT-MAX-1000",null,null,"Waterproofing Kit",null,null,"(approx. coverage is 120 sf)",null,null,null,null,"Stock","b,c",330.9,"EA",{"$f":"+Instructions!$B$3","v":"N"},null,{"$f":"+Instructions!$C$22","v":0},{"$f":"ROUND($AB127*(1-X127)+0.004999,2)","v":330.9},null,"",330.9,{"$f":"+X127","v":0},{"$f":"+Y127","v":330.9},{"$f":"(AH127-AD127)/AH127","v":0},null,5,{"$f":"SUM(AK127:AM127)+AF127","v":330.9},null,null,{"$f":"ROUND(AD127/(1-VLOOKUP(AG127,Group,2,FALSE)),2)","v":330.9},{"$f":"IF(VLOOKUP(AG127,Group,5,FALSE)=\"YES\",VLOOKUP(ROUND(ROUND(AK127,1)-AK127,2),Round,2,FALSE)+VLOOKUP(AG127,Group,6,FALSE),0)","v":0},{"$f":"IF(VLOOKUP(AG127,Group,7,FALSE)=\"\",0,ROUND(AK127-0.04999,1)-AK127+AN127)","v":0},{"$f":"IF(VLOOKUP(AG127,Group,7,FALSE)=\"\",\"\",VLOOKUP(AG127,Group,7,FALSE))","v":""},null,"X"]
[null,null,null,null,null,null,null,null,null,null,null,null,null,null,null," ",null,null,null,null,null,null,null,null,null,null,null,null,null,null,null,null,null,null,null,null,null,null,null,null,null,"X"]
[null,null,null,"Notes:","a) MIN-500 Waterproofing Kit includes:",null,null,null,null,null,null,null,null,null,null,null,null,null,null,null,null,null,null,null,null,null,null,null,null,null,null,null,null,null,null,null,null,null,null,null,null,"X"]
[null,null,null,null,"     - 1/2 gallon Liquid waterproofing"]
[null,null,null,null,"     - 25' x 6\" Joint tape"]
[null,null,null,null,"b) MAX-1000 Waterproofing Kit includes:"]
[null,null,null,null,"     - 2 gallons Liquid waterproofing"]
[null,null,null,null,"     - 75' x 6\" Joint tape"]
[null,null,null,null,"c) All Kits include:"]
[null,null,null,null,"     - 2 Internal corners",null,null,null,null,null,"- 1 Pair of gloves"]
[null,null,null,null,"     - 2 External corners",null,null,null,null,null,"- 1 Paint roller cover"]
[null,null,null,null,"     - 1 Tube adhesive/sealant",null,null,null,null,null,"- 1 Paint roller handle"]
[null,null,null,null,"     - 1 4\" disposable brush"]
[]
[null,null,"SeeLIT - Waterproofing Liquids",null,null,null,null,null,null,null,null,null,null,null,null,null,null,null,"Item # Lookup:","KUWPLIQ"]
[null,null,null,null,null,null,null,null,null,null,null,null,null,null,null," ",null,null,null,null,null,null,null,null,null,null,null,null,null,null,null,null,null,null,null,null,null,null,null,null,null,"X"]
[null,"Setting Materials",null,null,"1/2 Gallon",null,"SeeLIT-SOLO-1/2GAL",null,null,null,"Waterproofing Liquid Pail",null,null,null,null,null,null,"Stock",null,{"$f":"IF(Suggested=\"Yes\",AB143,AH143)","v":76.099999999999994},"EA",{"$f":"+Instructions!$B$3","v":"N"},null,{"$f":"+Instructions!$C$22","v":0},{"$f":"ROUND($AB143*(1-X143)+0.004999,2)","v":76.099999999999994},null,"",76.099999999999994,{"$f":"+X143","v":0},{"$f":"+Y143","v":76.099999999999994},{"$f":"(AH143-AD143)/AH143","v":0},null,5,{"$f":"SUM(AK143:AM143)+AF143","v":76.099999999999994},null,null,{"$f":"ROUND(AD143/(1-VLOOKUP(AG143,Group,2,FALSE)),2)","v":76.099999999999994},{"$f":"IF(VLOOKUP(AG143,Group,5,FALSE)=\"YES\",VLOOKUP(ROUND(ROUND(AK143,1)-AK143,2),Round,2,FALSE)+VLOOKUP(AG143,Group,6,FALSE),0)","v":0},{"$f":"IF(VLOOKUP(AG143,Group,7,FALSE)=\"\",0,ROUND(AK143-0.04999,1)-AK143+AN143)","v":0},{"$f":"IF(VLOOKUP(AG143,Group,7,FALSE)=\"\",\"\",VLOOKUP(AG143,Group,7,FALSE))","v":""},null,"X"]
[null,"Setting Materials",null,null,"2 Gallon",null,"SeeLIT-SOLO-2GAL",null,null,null,"Waterproofing Liquid Pail",null,null,null,null,null,null,"Stock",null,{"$f":"IF(Suggested=\"Yes\",AB144,AH144)","v":198.25},"EA",{"$f":"+Instructions!$B$3","v":"N"},null,{"$f":"+Instructions!$C$22","v":0},{"$f":"ROUND($AB144*(1-X144)+0.004999,2)","v":198.25},null,"",198.25,{"$f":"+X144","v":0},{"$f":"+Y144","v":198.25},{"$f":"(AH144-AD144)/AH144","v":0},null,5,{"$f":"SUM(AK144:AM144)+AF144","v":198.25},null,null,{"$f":"ROUND(AD144/(1-VLOOKUP(AG144,Group,2,FALSE)),2)","v":198.25},{"$f":"IF(VLOOKUP(AG144,Group,5,FALSE)=\"YES\",VLOOKUP(ROUND(ROUND(AK144,1)-AK144,2),Round,2,FALSE)+VLOOKUP(AG144,Group,6,FALSE),0)","v":0},{"$f":"IF(VLOOKUP(AG144,Group,7,FALSE)=\"\",0,ROUND(AK144-0.04999,1)-AK144+AN144)","v":0},{"$f":"IF(VLOOKUP(AG144,Group,7,FALSE)=\"\",\"\",VLOOKUP(AG144,Group,7,FALSE))","v":""},null,"X"]
[null,null,null,null,null,null,null,null,null,null,null,null,null,null,null," ",null,null,null,null,null,null,null,null,null,null,null,null,null,null,null,null,null,null,null,null,null,null,null,null,null,"X"]
[null,null,"SeeLIT - Waterproofing Accessories",null,null,null,null,null,null,null,null,null,null,null,null,null,null,null,"Item # Lookup:","KUWP"]
[null,null,null,null,null,null,null,null,null,null,null,null,null,null,null," ",null,null,null,null,null,null,null,null,null,null,null,null,null,null,null,null,null,null,null,null,null,null,null,null,null,"X"]
[null,"Setting Materials",null,null,"25' x 6\"",null,"SeeLIT-JT-25",null,null,null,"Joint Tape",null,null,null,null,null,null,"Stock",null,{"$f":"IF(Suggested=\"Yes\",AB148,AH148)","v":26.75},"EA",{"$f":"+Instructions!$B$3","v":"N"},null,{"$f":"+Instructions!$C$22","v":0},{"$f":"ROUND($AB148*(1-X148)+0.004999,2)","v":26.75},null,"",26.75,{"$f":"+X148","v":0},{"$f":"+Y148","v":26.75},{"$f":"(AH148-AD148)/AH148","v":0},null,5,{"$f":"SUM(AK148:AM148)+AF148","v":26.75},null,null,{"$f":"ROUND(AD148/(1-VLOOKUP(AG148,Group,2,FALSE)),2)","v":26.75},{"$f":"IF(VLOOKUP(AG148,Group,5,FALSE)=\"YES\",VLOOKUP(ROUND(ROUND(AK148,1)-AK148,2),Round,2,FALSE)+VLOOKUP(AG148,Group,6,FALSE),0)","v":0},{"$f":"IF(VLOOKUP(AG148,Group,7,FALSE)=\"\",0,ROUND(AK148-0.04999,1)-AK148+AN148)","v":0},{"$f":"IF(VLOOKUP(AG148,Group,7,FALSE)=\"\",\"\",VLOOKUP(AG148,Group,7,FALSE))","v":""},null,"X"]
[null,"Setting Materials",null,null,"75' x 6\"",null,"SeeLIT-JT-75",null,null,null,"Joint Tape",null,null,null,null,null,null,null,null,{"$f":"IF(Suggested=\"Yes\",AB149,AH149)","v":51.45},"EA",{"$f":"+Instructions!$B$3","v":"N"},null,{"$f":"+Instructions!$C$22","v":0},{"$f":"ROUND($AB149*(1-X149)+0.004999,2)","v":51.45},null,"",51.45,{"$f":"+X149","v":0},{"$f":"+Y149","v":51.45},{"$f":"(AH149-AD149)/AH149","v":0},null,5,{"$f":"SUM(AK149:AM149)+AF149","v":51.45},null,null,{"$f":"ROUND(AD149/(1-VLOOKUP(AG149,Group,2,FALSE)),2)","v":51.45},{"$f":"IF(VLOOKUP(AG149,Group,5,FALSE)=\"YES\",VLOOKUP(ROUND(ROUND(AK149,1)-AK149,2),Round,2,FALSE)+VLOOKUP(AG149,Group,6,FALSE),0)","v":0},{"$f":"IF(VLOOKUP(AG149,Group,7,FALSE)=\"\",0,ROUND(AK149-0.04999,1)-AK149+AN149)","v":0},{"$f":"IF(VLOOKUP(AG149,Group,7,FALSE)=\"\",\"\",VLOOKUP(AG149,Group,7,FALSE))","v":""},null,"X"]
[null,"Setting Materials",null,null,"2-pack",null,"SeeLIT-INT-2",null,null,null,"Internal Corner",null,null,null,null,null,null,"Stock",null,{"$f":"IF(Suggested=\"Yes\",AB150,AH150)","v":16.05},"EA",{"$f":"+Instructions!$B$3","v":"N"},null,{"$f":"+Instructions!$C$22","v":0},{"$f":"ROUND($AB150*(1-X150)+0.004999,2)","v":16.05},null,"",16.05,{"$f":"+X150","v":0},{"$f":"+Y150","v":16.05},{"$f":"(AH150-AD150)/AH150","v":0},null,5,{"$f":"SUM(AK150:AM150)+AF150","v":16.05},null,null,{"$f":"ROUND(AD150/(1-VLOOKUP(AG150,Group,2,FALSE)),2)","v":16.05},{"$f":"IF(VLOOKUP(AG150,Group,5,FALSE)=\"YES\",VLOOKUP(ROUND(ROUND(AK150,1)-AK150,2),Round,2,FALSE)+VLOOKUP(AG150,Group,6,FALSE),0)","v":0},{"$f":"IF(VLOOKUP(AG150,Group,7,FALSE)=\"\",0,ROUND(AK150-0.04999,1)-AK150+AN150)","v":0},{"$f":"IF(VLOOKUP(AG150,Group,7,FALSE)=\"\",\"\",VLOOKUP(AG150,Group,7,FALSE))","v":""},null,"X"]
[null,"Setting Materials",null,null,"2-pack",null,"SeeLIT-EXT-2",null,null,null,"External Corner",null,null,null,null,null,null,"Stock",null,16.05,"EA",{"$f":"+Instructions!$B$3","v":"N"},null,{"$f":"+Instructions!$C$22","v":0},16.05,null,"",16.05,0,16.05,0,null,5,16.05,null,null,16.05,0,0,"",null,"X"]
[]
[]
[]
[]
[]
[]
[]
[]
[]
[]
[]
[]
[]
[null,null,"This price list is available electronically on an Excel spreadsheet at www.conestogatile.com/pricelists.",null,null,null,null,null,null,null,null,null,null,null,null,null,null,null,null,null,null,null,null,null,null,null,null,null,null,null,null,null,null,null,null,null,null,null,null,null,null,"X"]
[null,null,null,null,null,null,null,null,null,null,null,null,null,null,null,null,null,null,null,null,null,null,null,null,null,null,null,null,null,null,null,null,null,null,null,null,null,null,null,null,null,"X"]
[null,null,"The spreadsheet has many special features to assist you.  Apply your discount to generate your net costs for your purchasing department.  Apply your Premium gross margin percentage or custom prices to generate your own custom price list for your showroom.  Print out individual price list for each series that can be attached to the back of your sample boards for easy reference.",null,null,null,null,null,null,null,null,null,null,null,null,null,null,null,null,null,null,null,null,null,null,null,null,null,null,null,null,null,null,null,null,null,null,null,null,null,null,"X"]
[null,null,null,null,null,null,null,null,null,null,null,null,null,null,null,null,null,null,null,null,null,null,null,null,null,null,null,null,null,null,null,null,null,null,null,null,null,null,null,null,null,"X"]
["X","X","X","X","X","X","X","X","X",null,"X","X","X","X","X","X","X","X","X","X","X","X","X","X","X","X","X","X","X","X","X","X","X","X","X","X","X","X","X","X","X","X"]
[]
[null,null,null,"$.05 Round Matrix"]
[null,null,null,-0.04,0.01]
[null,null,null,-0.03,0.02]
[null,null,null,-0.02,0.03]
[null,null,null,-0.01,-0.01]
[null,null,null,0,0]
[null,null,null,0.01,1.0000000000005116E-2]
[null,null,null,0.02,2.0000000000003126E-2]
[null,null,null,0.03,3.0000000000001137E-2]
[null,null,null,0.04,-0.01]
[null,null,null,0.05,0]

{"sheet":"Websites","index":3,"n_rows":8,"n_cols":2,"rows_kept":8,"cut":false,"hidden":false,"merged":[]}
["Easy Access Website links"]
[]
["ConestogaTile's Website","www.conestogatile.com"]
[]
["Manufacturer's Home Page","https://kurbx.com/"]
[]
[]
["Product","Direct Website Link"]

{"sheet":"Changes","index":4,"n_rows":19,"n_cols":3,"rows_kept":19,"cut":false,"hidden":false,"merged":[]}
["Date"]
["Announced","Series","Description"]
[]
["New Products"]
["2025-10-21","KurbX - 4\" Square Drain Assemblies","Bar Pattern and Lattice Pattern Frameless Drains added as well as a Lattice Pattern Shelf."]
["2025-10-21","SeeLIT - Waterproofing Accessories","SeeLIT-JT-25, 25' x 6\" Joint Tape and SeeLIT-JT-75, 75' x 6\" Joint Tape added. "]
[]
[]
[]
[" "]
[]
["Discontinued Products"]
["2025-10-21","KurbIT - Low Profile Curbs","SeeLIT-COVERS, SeeLIT Curb Covers (Right-handed + Left-handed)"]
["2025-10-21","SeeLIT - Waterproofing Accessories","SeeLIT-JT-27, 27' Joint Tape and SeeLIT-JT-82, 82' Joint Tape only. "]
["2025-10-21","KurbX - 4\" Square Drain Assemblies","Grid Pattern Design 4\" Square Drain Assemblies in all colors."]
[]
[]
[]
["Changes"]